fUST/lending_fUST_20240925
["ID","MTS","AMOUNT","RATE_DAILY","PERIOD"]
[339121685,1727261441649,-1614.580242,0.00016328,2]
[339121687,1727261441660,-433.560787,0.00016328,2]
[339121689,1727261441670,-433.560787,0.00016328,2]
[339121691,1727261441680,-157.370316,0.00016328,2]
[339121693,1727261441690,-157.370316,0.00016328,2]
[339121695,1727261441701,-151.0,0.00016328,2]
[339121698,1727261441713,-347.388722,0.00016328,2]
[339121699,1727261441724,-151.0,0.00016328,2]
[339121700,1727261441736,-151.0,0.00016328,2]
[339121701,1727261441746,-347.388722,0.00016328,2]
[339121702,1727261441755,-460.850731,0.00016328,2]
[339121703,1727261441765,-841.116374,0.00016328,2]
[339121704,1727261441774,-841.116374,0.00016328,2]
[339121705,1727261441784,-460.850731,0.00016328,2]
[339121706,1727261441793,-262.227915,0.00016328,2]
[339121707,1727261441805,-262.227915,0.00016328,2]
[339121708,1727261441815,-1479.367521,0.00016328,2]
[339121709,1727261441826,-151.0,0.00016328,2]
[339121710,1727261441836,-1479.367521,0.00016328,2]
[339121711,1727261441847,-1893.039312,0.00016328,2]
[339121712,1727261441857,-1893.039312,0.00016328,2]
[339121713,1727261441866,-411.179773,0.00016328,2]
[339121714,1727261441877,-411.179773,0.00016328,2]
[339121716,1727261441887,-536.791048,0.00016328,2]
[339121718,1727261441897,-661.055358,0.00016328,2]
[339121720,1727261441906,-536.791048,0.00016328,2]
[339121722,1727261441916,-661.055358,0.00016328,2]
[339121724,1727261441926,-674.125249,0.00016328,2]
[339121726,1727261441936,-674.125249,0.00016328,2]
[339121728,1727261441946,-224.783085,0.00016328,2]
[339121730,1727261441957,-224.783085,0.00016328,2]
[339121732,1727261441966,-343.107649,0.00016328,2]
[339121734,1727261441976,-343.107649,0.00016328,2]
[339121736,1727261441986,-151.0,0.00016328,2]
[339121738,1727261441996,-151.0,0.00016328,2]
[339121740,1727261442006,-474.272991,0.00016329,2]
[339121742,1727261442016,-474.272991,0.00016329,2]
[339121744,1727261442026,-474.272991,0.00016329,2]
[339121746,1727261442036,-474.272991,0.00016329,2]
[339121748,1727261442046,-151.0,0.00016329,2]
[339121750,1727261442055,-151.0,0.00016329,2]
[339121752,1727261442065,-151.0,0.00016329,2]
[339121754,1727261442074,-151.0,0.00016329,2]
[339121756,1727261442083,-182.760358,0.00016329,2]
[339121758,1727261442092,-182.760358,0.00016329,2]
[339121760,1727261442102,-1614.580242,0.00016329,2]
[339121762,1727261442113,-1614.580242,0.00016329,2]
[339121764,1727261442122,-182.760358,0.00016329,2]
[339121766,1727261442131,-182.760358,0.00016329,2]
[339121768,1727261442141,-1614.580242,0.00016329,2]
[339121770,1727261442151,-1614.580242,0.00016329,2]
[339121772,1727261442160,-433.560787,0.00016329,2]
[339121774,1727261442169,-433.560787,0.00016329,2]
[339121776,1727261442179,-433.560787,0.00016329,2]
[339121778,1727261442189,-433.560787,0.00016329,2]
[339121780,1727261442199,-157.370316,0.00016329,2]
[339121782,1727261442209,-157.370316,0.00016329,2]
[339121784,1727261442218,-157.370316,0.00016329,2]
[339121788,1727261442238,-157.370316,0.00016329,2]
[339121790,1727261442251,-151.0,0.00016329,2]
[339121792,1727261442262,-151.0,0.00016329,2]
[339121794,1727261442272,-347.388722,0.00016329,2]
[339121797,1727261442283,-347.388722,0.00016329,2]
[339121799,1727261442294,-151.0,0.00016329,2]
[339121801,1727261442305,-151.0,0.00016329,2]
[339121803,1727261442316,-151.0,0.00016329,2]
[339121805,1727261442329,-151.0,0.00016329,2]
[339121808,1727261442340,-347.388722,0.00016329,2]
[339121810,1727261442355,-347.388722,0.00016329,2]
[339121812,1727261442365,-460.850731,0.00016329,2]
[339121814,1727261442375,-841.116374,0.00016329,2]
[339121816,1727261442385,-460.850731,0.00016329,2]
[339121818,1727261442396,-841.116374,0.00016329,2]
[339121820,1727261442406,-841.116374,0.00016329,2]
[339121823,1727261442416,-841.116374,0.00016329,2]
[339121825,1727261442427,-460.850731,0.00016329,2]
[339121827,1727261442438,-460.850731,0.00016329,2]
[339121829,1727261442449,-262.227915,0.00016329,2]
[339121831,1727261442460,-262.227915,0.00016329,2]
[339121833,1727261442471,-262.227915,0.00016329,2]
[339121835,1727261442482,-262.227915,0.00016329,2]
[339121837,1727261442493,-1479.367521,0.00016329,2]
[339121839,1727261442503,-1479.367521,0.00016329,2]
[339121841,1727261442514,-151.0,0.00016329,2]
[339121844,1727261442525,-151.0,0.00016329,2]
[339121846,1727261442535,-1479.367521,0.00016329,2]
[339121848,1727261442546,-1479.367521,0.00016329,2]
[339121850,1727261442556,-1893.039312,0.00016329,2]
[339121852,1727261442566,-1893.039312,0.00016329,2]
[339121854,1727261442576,-1893.039312,0.00016329,2]
[339121856,1727261442585,-1893.039312,0.00016329,2]
[339121858,1727261442597,-2000.0,0.00016329,2]
[339121860,1727261442609,-2000.0,0.00016329,2]
[339121863,1727261442620,-2000.0,0.00016329,2]
[339121865,1727261442630,-2000.0,0.00016329,2]
[339121867,1727261442639,-2000.0,0.00016329,2]
[339121869,1727261442650,-2000.0,0.00016329,2]
[339121871,1727261442661,-2000.0,0.00016329,2]
[339121873,1727261442671,-2000.0,0.00016329,2]
[339121875,1727261442683,-2000.0,0.00016329,2]
[339121877,1727261442692,-2000.0,0.00016329,2]
[339121879,1727261442702,-2000.0,0.00016329,2]
[339121882,1727261442712,-2000.0,0.00016329,2]
[339121884,1727261442723,-2000.0,0.00016329,2]
[339121887,1727261442735,-2000.0,0.00016329,2]
[339121889,1727261442746,-2000.0,0.00016329,2]
[339121891,1727261442757,-2000.0,0.00016329,2]
[339121893,1727261442767,-2000.0,0.00016329,2]
[339121895,1727261442777,-2000.0,0.00016329,2]
[339121897,1727261442789,-2000.0,0.00016329,2]
[339121900,1727261442801,-1719.583193,0.00016329,2]
[339121901,1727261442822,-411.179773,0.00016329,2]
[339121904,1727261442838,-411.179773,0.00016329,2]
[339121906,1727261442851,-411.179773,0.00016329,2]
[339121909,1727261442866,-411.179773,0.00016329,2]
[339121911,1727261442876,-536.791048,0.00016329,2]
[339121913,1727261442887,-536.791048,0.00016329,2]
[339121915,1727261442897,-661.055358,0.00016329,2]
[339121917,1727261442910,-661.055358,0.00016329,2]
[339121919,1727261442920,-536.791048,0.00016329,2]
[339121922,1727261442933,-536.791048,0.00016329,2]
[339121924,1727261442943,-661.055358,0.00016329,2]
[339121926,1727261442954,-661.055358,0.00016329,2]
[339121928,1727261442965,-674.125249,0.00016329,2]
[339121930,1727261442974,-674.125249,0.00016329,2]
[339121932,1727261442984,-674.125249,0.00016329,2]
[339121934,1727261442994,-674.125249,0.00016329,2]
[339121936,1727261443004,-224.783085,0.00016329,2]
[339121938,1727261443014,-224.783085,0.00016329,2]
[339121940,1727261443024,-224.783085,0.00016329,2]
[339121942,1727261443034,-224.783085,0.00016329,2]
[339121944,1727261443043,-343.107649,0.00016329,2]
[339121946,1727261443053,-343.107649,0.00016329,2]
[339121948,1727261443062,-343.107649,0.00016329,2]
[339121950,1727261443073,-343.107649,0.00016329,2]
[339121952,1727261443083,-151.0,0.00016329,2]
[339121954,1727261443092,-151.0,0.00016329,2]
[339121956,1727261443102,-151.0,0.00016329,2]
[339121958,1727261443112,-151.0,0.00016329,2]
[339121960,1727261443122,-160.0,0.00016338,2]
[339121963,1727261443131,-160.0,0.00016338,2]
[339121965,1727261443142,-160.0,0.00016338,2]
[339121967,1727261443151,-151.0,0.00016339,2]
[339121969,1727261443162,-151.0,0.00016339,2]
[339121971,1727261443172,-151.0,0.00016339,2]
[339121973,1727261443182,-151.0,0.00016339,2]
[339121975,1727261443192,-2359.010703,0.00016339,2]
[339121977,1727261443202,-2359.010703,0.00016339,2]
[339121979,1727261443212,-2359.010703,0.00016339,2]
[339121981,1727261443222,-2359.010703,0.00016339,2]
[339121983,1727261443232,-151.0,0.00016339,2]
[339121985,1727261443242,-151.0,0.00016339,2]
[339121987,1727261443251,-1271.523187,0.00016339,2]
[339121989,1727261443261,-1271.523187,0.00016339,2]
[339121991,1727261443271,-1271.523187,0.00016339,2]
[339121993,1727261443280,-1271.523187,0.00016339,2]
[339121995,1727261443290,-1271.523187,0.00016339,2]
[339121997,1727261443300,-1271.523187,0.00016339,2]
[339122000,1727261443310,-233.489049,0.00016339,2]
[339122002,1727261443320,-233.489049,0.00016339,2]
[339122004,1727261443330,-233.489049,0.00016339,2]
[339122006,1727261443339,-2278.672671,0.00016339,2]
[339122008,1727261443349,-2278.672671,0.00016339,2]
[339122010,1727261443358,-2278.672671,0.00016339,2]
[339122012,1727261443368,-233.489049,0.00016339,2]
[339122014,1727261443378,-233.489049,0.00016339,2]
[339122016,1727261443387,-233.489049,0.00016339,2]
[339122018,1727261443397,-2278.672671,0.00016339,2]
[339122020,1727261443407,-2278.672671,0.00016339,2]
[339122022,1727261443417,-753.02402,0.00016339,2]
[339122024,1727261443426,-2278.672671,0.00016339,2]
[339122026,1727261443438,-753.02402,0.00016339,2]
[339122028,1727261443447,-753.02402,0.00016339,2]
[339122030,1727261443457,-753.02402,0.00016339,2]
[339122032,1727261443467,-333.191044,0.00016339,2]
[339122035,1727261443481,-333.191044,0.00016339,2]
[339122037,1727261443491,-333.191044,0.00016339,2]
[339122039,1727261443501,-604.230804,0.00016339,2]
[339122041,1727261443510,-151.0,0.00016339,2]
[339122043,1727261443521,-333.191044,0.00016339,2]
[339122045,1727261443531,-604.230804,0.00016339,2]
[339122047,1727261443540,-151.0,0.00016339,2]
[339122049,1727261443550,-604.230804,0.00016339,2]
[339122051,1727261443559,-151.0,0.00016339,2]
[339122053,1727261443569,-151.0,0.00016339,2]
[339122055,1727261443579,-203.176171,0.00016339,2]
[339122057,1727261443589,-604.230804,0.00016339,2]
[339122060,1727261443599,-604.230804,0.00016339,2]
[339122062,1727261443609,-604.230804,0.00016339,2]
[339122064,1727261443618,-151.0,0.00016339,2]
[339122066,1727261443628,-151.0,0.00016339,2]
[339122068,1727261443637,-151.0,0.00016339,2]
[339122070,1727261443647,-151.0,0.00016339,2]
[339122072,1727261443657,-151.0,0.00016339,2]
[339122074,1727261443666,-265.842267,0.00016339,2]
[339122076,1727261443675,-1415.896426,0.00016339,2]
[339122078,1727261443686,-1415.896426,0.00016339,2]
[339122080,1727261443702,-1415.896426,0.00016339,2]
[339122082,1727261443712,-1609.282442,0.00016339,2]
[339122084,1727261443721,-1609.282442,0.00016339,2]
[339122086,1727261443730,-1415.896426,0.00016339,2]
[339122088,1727261443743,-1609.282442,0.00016339,2]
[339122090,1727261443752,-1609.282442,0.00016339,2]
[339122092,1727261443762,-1609.282442,0.00016339,2]
[339122094,1727261443771,-1609.282442,0.00016339,2]
[339122096,1727261443781,-1609.282442,0.00016339,2]
[339122098,1727261443790,-1609.282442,0.00016339,2]
[339122100,1727261443800,-474.272991,0.00016339,2]
[339122102,1727261443813,-474.272991,0.00016339,2]
[339122104,1727261443823,-151.0,0.00016339,2]
[339122106,1727261443832,-151.0,0.00016339,2]
[339122108,1727261443842,-151.0,0.00016339,2]
[339122111,1727261443853,-151.0,0.00016339,2]
[339122140,1727261444122,-151.0,0.00016339,2]
[339122142,1727261444132,-151.0,0.00016339,2]
[339122144,1727261444141,-151.0,0.00016339,2]
[339122146,1727261444150,-207.718254,0.00016339,2]
[339122148,1727261444159,-151.0,0.00016339,2]
[339122150,1727261444169,-151.0,0.00016339,2]
[339122152,1727261444178,-182.760358,0.00016339,2]
[339122154,1727261444191,-1614.580242,0.00016339,2]
[339122156,1727261444200,-182.760358,0.00016339,2]
[339122158,1727261444209,-1614.580242,0.00016339,2]
[339122160,1727261444219,-433.560787,0.00016339,2]
[339122162,1727261444228,-433.560787,0.00016339,2]
[339122164,1727261444237,-157.370316,0.00016339,2]
[339122166,1727261444247,-157.370316,0.00016339,2]
[339122168,1727261444256,-151.0,0.00016339,2]
[339122170,1727261444266,-347.388722,0.00016339,2]
[339122172,1727261444275,-347.388722,0.00016339,2]
[339122174,1727261444284,-151.0,0.00016339,2]
[339122177,1727261444294,-151.0,0.00016339,2]
[339122179,1727261444314,-151.0,0.00016339,2]
[339122182,1727261444324,-347.388722,0.00016339,2]
[339122184,1727261444334,-347.388722,0.00016339,2]
[339122186,1727261444346,-460.850731,0.00016339,2]
[339122188,1727261444356,-460.850731,0.00016339,2]
[339122190,1727261444365,-841.116374,0.00016339,2]
[339122192,1727261444375,-841.116374,0.00016339,2]
[339122194,1727261444385,-460.850731,0.00016339,2]
[339122196,1727261444395,-460.850731,0.00016339,2]
[339122198,1727261444405,-262.227915,0.00016339,2]
[339122200,1727261444415,-262.227915,0.00016339,2]
[339122202,1727261444425,-262.227915,0.00016339,2]
[339122204,1727261444434,-262.227915,0.00016339,2]
[339122206,1727261444444,-1479.367521,0.00016339,2]
[339122208,1727261444454,-1479.367521,0.00016339,2]
[339122210,1727261444464,-151.0,0.00016339,2]
[339122212,1727261444473,-151.0,0.00016339,2]
[339122214,1727261444485,-1479.367521,0.00016339,2]
[339122216,1727261444495,-1479.367521,0.00016339,2]
[339122218,1727261444504,-1893.039312,0.00016339,2]
[339122220,1727261444516,-1893.039312,0.00016339,2]
[339122223,1727261444526,-1893.039312,0.00016339,2]
[339122225,1727261444536,-1893.039312,0.00016339,2]
[339122227,1727261444546,-411.179773,0.00016339,2]
[339122229,1727261444556,-411.179773,0.00016339,2]
[339122231,1727261444566,-411.179773,0.00016339,2]
[339122233,1727261444576,-411.179773,0.00016339,2]
[339122235,1727261444587,-536.791048,0.00016339,2]
[339122237,1727261444597,-536.791048,0.00016339,2]
[339122239,1727261444606,-661.055358,0.00016339,2]
[339122241,1727261444616,-661.055358,0.00016339,2]
[339122243,1727261444627,-536.791048,0.00016339,2]
[339122245,1727261444636,-536.791048,0.00016339,2]
[339122247,1727261444646,-661.055358,0.00016339,2]
[339122249,1727261444656,-661.055358,0.00016339,2]
[339122251,1727261444666,-674.125249,0.00016339,2]
[339122252,1727261444676,-674.125249,0.00016339,2]
[339122253,1727261444689,-674.125249,0.00016339,2]
[339122254,1727261444699,-674.125249,0.00016339,2]
[339122255,1727261444710,-224.783085,0.00016339,2]
[339122256,1727261444719,-224.783085,0.00016339,2]
[339122257,1727261444730,-224.783085,0.00016339,2]
[339122258,1727261444740,-224.783085,0.00016339,2]
[339122259,1727261444750,-343.107649,0.00016339,2]
[339122260,1727261444761,-343.107649,0.00016339,2]
[339122261,1727261444770,-343.107649,0.00016339,2]
[339122262,1727261444780,-343.107649,0.00016339,2]
[339122263,1727261444790,-151.0,0.00016339,2]
[339122264,1727261444801,-151.0,0.00016339,2]
[339122265,1727261444814,-151.0,0.00016339,2]
[339122267,1727261444823,-171.663762,0.00016339,2]
[339122269,1727261444834,-160.0,0.00016348,2]
[339122272,1727261444844,-151.0,0.00016349,2]
[339122274,1727261444854,-151.0,0.00016349,2]
[339122276,1727261444864,-2359.010703,0.00016349,2]
[339122278,1727261444874,-2359.010703,0.00016349,2]
[339122280,1727261444886,-151.0,0.00016349,2]
[339122282,1727261444896,-208.003114,0.00016349,2]
[339122284,1727261444906,-753.02402,0.00016349,2]
[339122286,1727261444915,-753.02402,0.00016349,2]
[339122288,1727261444925,-333.191044,0.00016349,2]
[339122290,1727261444938,-333.191044,0.00016349,2]
[339122292,1727261444948,-1415.896426,0.00016349,2]
[339122294,1727261444958,-1415.896426,0.00016349,2]
[339122296,1727261444967,-151.0,0.0001635,2]
[339122298,1727261444977,-151.0,0.0001635,2]
[339122300,1727261444987,-255.056118,0.0001635,2]
[339122302,1727261444997,-255.056118,0.0001635,2]
[339122304,1727261445007,-169.970857,0.0001635,2]
[339122306,1727261445017,-169.970857,0.0001635,2]
[339122308,1727261445027,-151.0,0.0001635,2]
[339122311,1727261445037,-214.030628,0.0001635,2]
[339122313,1727261445046,-151.0,0.0001635,2]
[339122315,1727261445056,-151.0,0.0001635,2]
[339122317,1727261445065,-166.762087,0.0001635,2]
[339122319,1727261445075,-166.762087,0.0001635,2]
[339122321,1727261445085,-166.762087,0.0001635,2]
[339122323,1727261445095,-166.762087,0.0001635,2]
[339122325,1727261445104,-323.721354,0.0001635,2]
[339122327,1727261445114,-323.721354,0.0001635,2]
[339122328,1727261445123,-323.721354,0.0001635,2]
[339122331,1727261445133,-323.721354,0.0001635,2]
[339122333,1727261445142,-170.007318,0.0001635,2]
[339122334,1727261445152,-170.007318,0.0001635,2]
[339122336,1727261445161,-490.922217,0.0001635,2]
[339122338,1727261445170,-490.922217,0.0001635,2]
[339122340,1727261445179,-490.922217,0.0001635,2]
[339122342,1727261445190,-490.922217,0.0001635,2]
[339122345,1727261445200,-410.867867,0.0001635,2]
[339122347,1727261445209,-410.867867,0.0001635,2]
[339122348,1727261445218,-410.867867,0.0001635,2]
[339122351,1727261445228,-410.867867,0.0001635,2]
[339122352,1727261445238,-529.446579,0.0001635,2]
[339122354,1727261445247,-529.446579,0.0001635,2]
[339122356,1727261445257,-529.446579,0.0001635,2]
[339122358,1727261445267,-529.446579,0.0001635,2]
[339122360,1727261445276,-474.272991,0.0001635,2]
[339122362,1727261445286,-474.272991,0.0001635,2]
[339122364,1727261445297,-151.0,0.0001635,2]
[339122366,1727261445307,-151.0,0.0001635,2]
[339122368,1727261445316,-182.760358,0.0001635,2]
[339122370,1727261445325,-1614.580242,0.0001635,2]
[339122372,1727261445335,-182.760358,0.0001635,2]
[339122374,1727261445344,-1614.580242,0.0001635,2]
[339122376,1727261445354,-433.560787,0.0001635,2]
[339122378,1727261445364,-433.560787,0.0001635,2]
[339122381,1727261445374,-157.370316,0.0001635,2]
[339122383,1727261445384,-157.370316,0.0001635,2]
[339122385,1727261445393,-151.0,0.0001635,2]
[339122387,1727261445403,-274.385458,0.0001635,2]
[339122389,1727261445413,-841.116374,0.0001635,2]
[339122391,1727261445422,-841.116374,0.0001635,2]
[339122393,1727261445431,-1056.59828299,0.00016354,2]
[339122395,1727261445444,-1007.7710005,0.00016358,2]
[339122397,1727261445454,-500.0,0.00016358,2]
[339122399,1727261445464,-151.0,0.00016359,2]
[339122401,1727261445474,-151.0,0.00016359,2]
[339122403,1727261445484,-151.0,0.00016359,2]
[339122406,1727261445495,-160.540014,0.00016359,2]
[339122408,1727261445506,-160.540014,0.00016359,2]
[339122410,1727261445516,-160.540014,0.00016359,2]
[339122412,1727261445525,-160.540014,0.00016359,2]
[339122414,1727261445535,-160.540014,0.00016359,2]
[339122416,1727261445545,-160.540014,0.00016359,2]
[339122418,1727261445556,-151.0,0.00016359,2]
[339122420,1727261445566,-151.0,0.00016359,2]
[339122423,1727261445576,-151.0,0.00016359,2]
[339122425,1727261445585,-151.852091,0.00016359,2]
[339122427,1727261445596,-151.0,0.00016359,2]
[339122429,1727261445605,-151.0,0.00016359,2]
[339122431,1727261445614,-151.0,0.00016359,2]
[339122433,1727261445625,-151.0,0.00016359,2]
[339122435,1727261445637,-255.056118,0.00016359,2]
[339122437,1727261445647,-255.056118,0.00016359,2]
[339122440,1727261445659,-169.970857,0.00016359,2]
[339122442,1727261445668,-169.970857,0.00016359,2]
[339122444,1727261445678,-170.007318,0.00016359,2]
[339122446,1727261445691,-170.007318,0.00016359,2]
[339122448,1727261445701,-410.867867,0.00016359,2]
[339122450,1727261445712,-410.867867,0.00016359,2]
[339122452,1727261445725,-151.0,0.00016359,2]
[339122454,1727261445735,-151.0,0.00016359,2]
[339122456,1727261445745,-2359.010703,0.00016359,2]
[339122458,1727261445755,-2359.010703,0.00016359,2]
[339122460,1727261445765,-151.0,0.00016359,2]
[339122463,1727261445775,-1271.523187,0.00016359,2]
[339122465,1727261445785,-1271.523187,0.00016359,2]
[339122466,1727261445794,-529.446579,0.00016359,2]
[339122469,1727261445808,-529.446579,0.00016359,2]
[339122470,1727261445818,-233.489049,0.00016359,2]
[339122472,1727261445827,-2278.672671,0.00016359,2]
[339122475,1727261445838,-233.489049,0.00016359,2]
[339122477,1727261445850,-2278.672671,0.00016359,2]
[339122479,1727261445861,-753.02402,0.00016359,2]
[339122481,1727261445871,-753.02402,0.00016359,2]
[339122483,1727261445883,-333.191044,0.00016359,2]
[339122485,1727261445893,-333.191044,0.00016359,2]
[339122487,1727261445903,-604.230804,0.00016359,2]
[339122489,1727261445913,-151.0,0.00016359,2]
[339122491,1727261445923,-604.230804,0.00016359,2]
[339122493,1727261445934,-151.0,0.00016359,2]
[339122496,1727261445944,-1415.896426,0.00016359,2]
[339122498,1727261445955,-1609.282442,0.00016359,2]
[339122500,1727261445964,-1415.896426,0.00016359,2]
[339122502,1727261445975,-1609.282442,0.00016359,2]
[339122504,1727261445985,-474.272991,0.00016359,2]
[339122506,1727261445995,-474.272991,0.00016359,2]
[339122508,1727261446005,-151.0,0.00016359,2]
[339122510,1727261446017,-151.0,0.00016359,2]
[339122512,1727261446027,-151.0,0.00016359,2]
[339122514,1727261446038,-182.760358,0.00016359,2]
[339122517,1727261446049,-1614.580242,0.00016359,2]
[339122519,1727261446059,-182.760358,0.00016359,2]
[339122520,1727261446068,-1614.580242,0.00016359,2]
[339122523,1727261446078,-433.560787,0.00016359,2]
[339122525,1727261446089,-433.560787,0.00016359,2]
[339122527,1727261446099,-157.370316,0.00016359,2]
[339122529,1727261446110,-157.370316,0.00016359,2]
[339122531,1727261446121,-151.0,0.00016359,2]
[339122533,1727261446130,-347.388722,0.00016359,2]
[339122535,1727261446140,-151.0,0.00016359,2]
[339122537,1727261446150,-347.388722,0.00016359,2]
[339122539,1727261446159,-460.850731,0.00016359,2]
[339122541,1727261446168,-841.116374,0.00016359,2]
[339122543,1727261446177,-841.116374,0.00016359,2]
[339122545,1727261446187,-460.850731,0.00016359,2]
[339122547,1727261446198,-262.227915,0.00016359,2]
[339122549,1727261446208,-262.227915,0.00016359,2]
[339122551,1727261446218,-1479.367521,0.00016359,2]
[339122553,1727261446229,-151.0,0.00016359,2]
[339122556,1727261446240,-1479.367521,0.00016359,2]
[339122558,1727261446252,-1893.039312,0.00016359,2]
[339122560,1727261446261,-1893.039312,0.00016359,2]
[339122562,1727261446271,-411.179773,0.00016359,2]
[339122564,1727261446280,-411.179773,0.00016359,2]
[339122566,1727261446290,-536.791048,0.00016359,2]
[339122568,1727261446299,-661.055358,0.00016359,2]
[339122570,1727261446310,-536.791048,0.00016359,2]
[339122572,1727261446321,-661.055358,0.00016359,2]
[339122574,1727261446330,-674.125249,0.00016359,2]
[339122576,1727261446341,-674.125249,0.00016359,2]
[339122579,1727261446353,-224.783085,0.00016359,2]
[339122581,1727261446362,-224.783085,0.00016359,2]
[339122583,1727261446372,-343.107649,0.00016359,2]
[339122585,1727261446381,-343.107649,0.00016359,2]
[339122587,1727261446393,-151.0,0.00016359,2]
[339122589,1727261446402,-151.0,0.0001636,2]
[339122591,1727261446412,-323.721354,0.0001636,2]
[339122593,1727261446425,-323.721354,0.0001636,2]
[339122595,1727261446437,-1000.0,0.0001636,2]
[339122598,1727261446447,-1000.0,0.00016369,2]
[339122600,1727261446456,-222.378584,0.0001637,2]
[339122602,1727261446467,-222.378584,0.0001637,2]
[339122604,1727261446477,-222.378584,0.0001637,2]
[339122606,1727261446486,-222.378584,0.0001637,2]
[339122608,1727261446495,-151.0,0.0001637,2]
[339122610,1727261446504,-151.0,0.0001637,2]
[339122611,1727261446513,-151.0,0.0001637,2]
[339122613,1727261446523,-151.0,0.0001637,2]
[339122616,1727261446533,-303.05947,0.0001637,2]
[339122618,1727261446542,-303.05947,0.0001637,2]
[339122620,1727261446551,-303.05947,0.0001637,2]
[339122622,1727261446560,-303.05947,0.0001637,2]
[339122623,1727261446570,-151.0,0.0001637,2]
[339122626,1727261446579,-151.0,0.0001637,2]
[339122628,1727261446588,-151.0,0.0001637,2]
[339122630,1727261446598,-151.0,0.0001637,2]
[339122632,1727261446607,-151.0,0.0001637,2]
[339122634,1727261446616,-151.0,0.0001637,2]
[339122636,1727261446627,-255.056118,0.0001637,2]
[339122638,1727261446637,-255.056118,0.0001637,2]
[339122640,1727261446646,-300.0,0.0001637,2]
[339122642,1727261446657,-169.970857,0.0001637,2]
[339122644,1727261446667,-252.304556,0.0001637,2]
[339122646,1727261446676,-169.970857,0.0001637,2]
[339122648,1727261446686,-166.762087,0.0001637,2]
[339122650,1727261446695,-166.762087,0.0001637,2]
[339122652,1727261446705,-170.007318,0.0001637,2]
[339122654,1727261446714,-170.007318,0.0001637,2]
[339122656,1727261446724,-490.922217,0.0001637,2]
[339122658,1727261446733,-490.922217,0.0001637,2]
[339122660,1727261446742,-1271.523187,0.0001637,2]
[339122662,1727261446751,-1271.523187,0.0001637,2]
[339122664,1727261446761,-233.489049,0.0001637,2]
[339122666,1727261446770,-233.489049,0.0001637,2]
[339122668,1727261446779,-347.388722,0.0001637,2]
[339122670,1727261446788,-151.0,0.0001637,2]
[339122672,1727261446798,-347.388722,0.0001637,2]
[339122674,1727261446811,-460.850731,0.0001637,2]
[339122676,1727261446820,-460.850731,0.0001637,2]
[339122678,1727261446829,-262.227915,0.0001637,2]
[339122680,1727261446838,-262.227915,0.0001637,2]
[339122682,1727261446849,-1479.367521,0.0001637,2]
[339122684,1727261446859,-151.0,0.0001637,2]
[339122686,1727261446868,-1479.367521,0.0001637,2]
[339122688,1727261446877,-1893.039312,0.0001637,2]
[339122690,1727261446887,-1893.039312,0.0001637,2]
[339122692,1727261446897,-411.179773,0.0001637,2]
[339122694,1727261446907,-411.179773,0.0001637,2]
[339122696,1727261446917,-536.791048,0.0001637,2]
[339122698,1727261446926,-661.055358,0.0001637,2]
[339122700,1727261446936,-536.791048,0.0001637,2]
[339122703,1727261446945,-661.055358,0.0001637,2]
[339122705,1727261446955,-674.125249,0.0001637,2]
[339122707,1727261446964,-674.125249,0.0001637,2]
[339122708,1727261446974,-224.783085,0.0001637,2]
[339122711,1727261446983,-224.783085,0.0001637,2]
[339122712,1727261446993,-343.107649,0.0001637,2]